bitfinex/quotes_BTCUSD_20250218
["timestamp","ask_amount","ask_price","bid_price","bid_amount"]
[1739866941455,0.12075453,95540.0,95530.0,0.0858]
[1739866941664,0.157006,95538.0,95530.0,0.0858]
[1739866941869,0.157006,95538.0,95530.0,0.0838]
[1739866942092,0.157006,95538.0,95530.0,0.0858]
[1739866942501,0.157006,95538.0,95530.0,0.0818]
[1739866942716,0.157004,95539.0,95530.0,0.0818]
[1739866942868,0.157005,95539.0,95530.0,0.0818]
[1739866943080,0.209317,95549.0,95530.0,0.0798]
[1739866943289,0.209317,95549.0,95530.0,0.0808]
[1739866943290,0.157008,95537.0,95530.0,0.0808]
[1739866943491,0.157008,95537.0,95530.0,0.0818]
[1739866944083,0.157008,95537.0,95530.0,0.0808]
[1739866944297,0.209329,95543.0,95530.0,0.0808]
[1739866944502,0.157005,95539.0,95530.0,0.0808]
[1739866944723,0.157005,95538.0,95530.0,0.0808]
[1739866944958,0.157005,95538.0,95530.0,0.0798]
[1739866945389,0.157007,95537.0,95530.0,0.0798]
[1739866945902,0.157007,95537.0,95530.0,0.0808]
[1739866946110,0.157007,95537.0,95530.0,0.0828]
[1739866946529,0.157007,95537.0,95530.0,0.0821404]
[1739866946733,0.209332,95542.0,95530.0,0.0821404]
[1739866946886,0.157004,95539.0,95530.0,0.0841404]
[1739866947099,0.157007,95537.0,95530.0,0.0841404]
[1739866948236,0.157007,95537.0,95530.0,0.0821404]
[1739866948797,0.157012,95534.0,95530.0,0.0801404]
[1739866949009,0.209345,95537.0,95530.0,0.0821404]
[1739866949167,0.15701,95536.0,95530.0,0.0831404]
[1739866949517,0.209339,95539.0,95530.0,0.0821404]
[1739866949732,0.157007,95537.0,95530.0,0.0821404]
[1739866949946,0.157007,95537.0,95530.0,0.0841404]
[1739866950311,0.157007,95537.0,95530.0,0.0821404]
[1739866950513,0.157007,95537.0,95530.0,0.0841404]
[1739866951283,0.157009,95536.0,95530.0,0.0841404]
[1739866951496,0.157009,95536.0,95530.0,0.0821404]
[1739866951707,0.209341,95538.0,95530.0,0.0821404]
[1739866951921,0.15701,95536.0,95530.0,0.0811404]
[1739866952134,0.23037609,95545.0,95530.0,0.0821404]
[1739866952346,0.15701,95535.0,95530.0,0.0841404]
[1739866952561,0.15701,95535.0,95530.0,0.0821404]
[1739866952743,0.15701,95535.0,95530.0,0.0801404]
[1739866953004,0.23037609,95545.0,95530.0,0.0821404]
[1739866953210,0.157009,95536.0,95530.0,0.0821404]
[1739866953426,0.157009,95536.0,95530.0,0.0801404]
[1739866953634,0.157009,95536.0,95530.0,0.0821404]
[1739866953816,0.157007,95537.0,95530.0,0.0821404]
[1739866954021,0.209337,95540.0,95530.0,0.0821404]
[1739866954434,0.157007,95537.0,95530.0,0.0821404]
[1739866954672,0.157007,95537.0,95530.0,0.0841404]
[1739866954893,0.157007,95537.0,95530.0,0.0801404]
[1739866955087,0.157007,95537.0,95530.0,0.0821404]
[1739866955238,0.157007,95537.0,95530.0,0.0831404]
[1739866955445,0.157007,95537.0,95530.0,0.0821404]
[1739866955650,0.157007,95537.0,95530.0,0.0801404]
[1739866955880,0.157008,95537.0,95530.0,0.0821404]
[1739866956085,0.157007,95537.0,95530.0,0.0841404]
[1739866956647,0.157009,95536.0,95530.0,0.0841404]
[1739866957501,0.157009,95536.0,95530.0,0.0821404]
[1739866957915,0.157009,95536.0,95530.0,0.0841404]
[1739866958288,0.02105009,95545.0,95530.0,0.0821404]
[1739866958688,0.157011,95535.0,95530.0,0.0841404]
[1739866958934,0.157012,95534.0,95530.0,0.0841404]
[1739866959226,0.15701,95535.0,95530.0,0.0801404]
[1739866959432,0.157008,95536.0,95530.0,0.0801404]
[1739866959662,0.209332,95542.0,95530.0,0.0801404]
[1739866959870,0.157008,95536.0,95530.0,0.0801404]
[1739866960073,0.02205009,95545.0,95530.0,0.0801404]
[1739866960281,0.209329,95543.0,95530.0,0.0831404]
[1739866960878,0.02205009,95545.0,95530.0,0.0831404]
[1739866960879,0.157007,95538.0,95531.0,0.01308808]
[1739866961728,0.157007,95538.0,95530.0,0.0821404]
[1739866961967,0.157008,95537.0,95530.0,0.0821404]
[1739866962183,0.157008,95537.0,95530.0,0.0801404]
[1739866962395,0.157005,95539.0,95531.0,0.001]
[1739866962604,0.209335,95541.0,95531.0,0.001]
[1739866962813,0.157006,95538.0,95531.0,0.001]
[1739866963015,0.157006,95538.0,95530.0,0.0811404]
[1739866963435,0.157006,95538.0,95530.0,0.0831404]
[1739866964380,0.157006,95538.0,95530.0,0.0821404]
[1739866964577,0.209338,95539.0,95530.0,0.0821404]
[1739866964778,0.07924996,95541.0,95530.0,0.0821404]
[1739866964779,0.157003,95540.0,95530.0,0.0801404]
[1739866965049,0.157004,95539.0,95530.0,0.0811404]
[1739866965226,0.157004,95539.0,95531.0,0.001]
[1739866965849,0.157004,95539.0,95530.0,0.0811404]
[1739866966197,0.157004,95539.0,95530.0,0.0801404]
[1739866967517,0.157004,95539.0,95531.0,0.001]
[1739866967747,0.157004,95539.0,95530.0,0.0801404]
[1739866968157,0.157004,95539.0,95530.0,0.0821404]
[1739866968361,0.157005,95538.0,95530.0,0.0811404]
[1739866968791,0.157005,95538.0,95531.0,0.001]
[1739866968962,0.157005,95538.0,95530.0,0.0811404]
[1739866969160,0.157005,95538.0,95530.0,0.0821404]
[1739866969380,0.157003,95539.0,95530.0,0.0811404]
[1739866969579,0.157003,95539.0,95530.0,0.0821404]
[1739866970623,0.02105009,95545.0,95531.0,0.07819068]
[1739866970830,0.17338458,95551.0,95539.0,0.0762]
[1739866971039,0.01640058,95551.0,95539.0,0.0762]
[1739866971209,0.02111484,95547.0,95540.0,0.0778]
[1739866971423,0.02111484,95547.0,95543.0,0.0778]
[1739866972989,0.02311484,95547.0,95543.0,0.0778]
[1739866973143,0.19633295,95558.0,95543.0,0.0778]
[1739866973355,0.156982,95553.0,95543.0,0.0778]
[1739866973553,0.156982,95552.0,95543.0,0.0778]
[1739866973952,0.02053821,95547.0,95543.0,0.0778]
[1739866974158,0.02153821,95547.0,95543.0,0.0778]
[1739866974567,0.02053821,95547.0,95543.0,0.0778]
[1739866974947,0.02253821,95547.0,95543.0,0.0778]
[1739866975583,0.02153821,95547.0,95543.0,0.0778]
[1739866975783,0.02053821,95547.0,95543.0,0.0778]
[1739866976265,0.02053821,95547.0,95543.0,0.0788]
[1739866976479,0.02053821,95547.0,95543.0,0.0798]
[1739866977232,0.02053821,95547.0,95543.0,0.0788]
[1739866977647,0.02053821,95547.0,95543.0,0.0798]
[1739866977868,0.02053821,95547.0,95543.0,0.0818]
[1739866983500,0.02070841,95547.0,95543.0,0.0818]
[1739866990288,0.0001702,95547.0,95544.0,0.209325]
[1739866990556,0.0001702,95547.0,95545.0,0.0768]
[1739866991814,0.0001702,95547.0,95545.0,0.0788]
[1739866992468,0.156992,95546.0,95545.0,0.002]
[1739866993074,0.0001702,95547.0,95542.0,0.0485]
[1739866993478,0.0001702,95547.0,95545.0,0.004]
[1739866993679,0.0001702,95547.0,95542.0,0.0485]
[1739866993915,0.0001702,95547.0,95545.0,0.002]
[1739866994116,0.0001702,95547.0,95545.0,0.003]
[1739866994322,0.0001702,95547.0,95542.0,0.0485]
[1739866994543,0.156992,95546.0,95545.0,0.001]
[1739866994774,0.1571612,95547.0,95545.0,0.001]
[1739866995050,0.0001702,95547.0,95545.0,0.001]
[1739866995297,0.0001702,95547.0,95542.0,0.0485]
[1739866996226,0.0001702,95547.0,95545.0,0.001]
[1739866996471,0.0001702,95547.0,95542.0,0.0488404]
[1739866996709,0.0001702,95547.0,95546.0,0.079]
[1739866997921,0.0001702,95547.0,95546.0,0.237992]
[1739866998167,0.0001702,95547.0,95546.0,0.284492]
[1739867001525,0.15,95567.0,95546.0,0.1275]
[1739867001780,0.15,95565.0,95549.0,0.156987]
[1739867002038,0.306961,95565.0,95548.0,0.236588]
[1739867002234,0.15,95569.0,95548.0,0.0796]
[1739867002508,0.156963,95564.0,95548.0,0.0796]
[1739867002721,0.15,95569.0,95548.0,0.0796]
[1739867002926,0.156961,95565.0,95548.0,0.0796]
[1739867003132,0.17754344,95565.0,95548.0,0.0796]
[1739867003264,0.02058244,95565.0,95548.0,0.0796]
[1739867003472,0.17954344,95565.0,95548.0,0.0796]
[1739867003903,0.17954344,95565.0,95548.0,0.0806]
[1739867004079,0.17754344,95565.0,95548.0,0.0806]
[1739867004307,0.17754344,95565.0,95548.0,0.0796]
[1739867004519,0.17954444,95565.0,95548.0,0.0796]
[1739867004731,0.18154444,95565.0,95548.0,0.0796]
[1739867004939,0.18354444,95565.0,95548.0,0.0796]
[1739867005099,0.18354444,95565.0,95550.0,0.1255]
[1739867005100,0.02658244,95565.0,95550.0,0.1255]
[1739867005307,0.02658244,95565.0,95551.0,0.0794]
[1739867005637,0.07924996,95561.0,95551.0,0.0794]
[1739867006074,0.02658244,95565.0,95551.0,0.0794]
[1739867006259,0.02658244,95565.0,95555.0,0.0778]
[1739867006670,0.02458244,95565.0,95555.0,0.0778]
[1739867006847,0.02258244,95565.0,95555.0,0.0778]
[1739867007068,0.02358244,95565.0,95555.0,0.0778]
[1739867007273,0.02058244,95565.0,95555.0,0.0778]
[1739867007699,0.02358244,95565.0,95555.0,0.0778]
[1739867009124,0.0001702,95561.0,95555.0,0.0778]
[1739867010556,0.0001702,95561.0,95557.0,0.156973]
[1739867010761,0.0001702,95561.0,95557.0,0.0488]
[1739867015600,0.0001702,95561.0,95560.0,0.237869]
[1739867016063,0.0001702,95561.0,95560.0,0.0809]
[1739867022563,0.0001702,95561.0,95557.0,0.0488]
[1739867033814,0.0001702,95561.0,95557.0,0.0491404]
[1739867034967,0.0001702,95561.0,95560.0,0.156969]
[1739867035147,0.0001702,95561.0,95560.0,0.38947265]
[1739867036091,0.0001702,95561.0,95560.0,0.39447265]
[1739867036432,0.0001702,95561.0,95560.0,0.39947265]
[1739867037437,0.0001702,95561.0,95560.0,0.39947265]
[1739867037842,0.0001702,95561.0,95560.0,0.39447265]
[1739867038268,0.0001702,95561.0,95560.0,0.42010645]
[1739867038472,0.0001702,95561.0,95560.0,0.50404458]
[1739867040133,0.0001702,95561.0,95560.0,0.52704458]
[1739867042175,0.0001702,95561.0,95560.0,0.51604458]
[1739867042594,0.0001702,95561.0,95560.0,0.52104458]
[1739867042806,0.0001702,95561.0,95560.0,0.51604458]
[1739867043229,0.0001702,95561.0,95560.0,0.52304458]
[1739867043810,0.209223,95592.0,95561.0,0.20929]
[1739867044059,0.156923,95588.0,95572.0,0.156948]
[1739867044323,0.02072759,95586.0,95573.0,0.08]
[1739867044583,0.03823047,95588.0,95575.0,0.0482]
[1739867044810,0.00023971,95591.0,95575.0,0.0482]
[1739867045298,0.07924996,95590.0,95576.0,0.03385172]
[1739867045499,0.156925,95587.0,95575.0,0.0482]
[1739867045700,0.07924996,95590.0,95575.0,0.0482]
[1739867045701,0.156923,95588.0,95575.0,0.0482]
[1739867045928,0.156925,95587.0,95575.0,0.0482]
[1739867046136,0.209229,95589.0,95575.0,0.0482]
[1739867046381,0.156926,95586.0,95575.0,0.0482]
[1739867046545,0.156925,95587.0,95575.0,0.0482]
[1739867047881,0.209229,95589.0,95575.0,0.0976425]
[1739867048089,0.156924,95588.0,95575.0,0.0976425]
[1739867048759,0.156923,95588.0,95575.0,0.0976425]
[1739867048930,0.156923,95588.0,95575.0,0.0482]
[1739867049457,0.156922,95589.0,95575.0,0.0482]
[1739867049632,0.07924996,95590.0,95575.0,0.0482]
[1739867049867,0.07924996,95590.0,95575.0,0.205144]
[1739867050072,0.07924996,95590.0,95575.0,0.0482]
[1739867050247,0.07924996,95590.0,95576.0,0.054673]
[1739867050953,0.07924996,95590.0,95575.0,0.0482]
[1739867051330,0.156928,95585.0,95575.0,0.0482]
[1739867051539,0.20924,95584.0,95575.0,0.0482]
[1739867051743,0.07924996,95585.0,95575.0,0.0482]
[1739867051953,0.156959,95566.0,95565.0,0.0483]
[1739867052300,0.10627006,95584.0,95530.0,0.07977876]
[1739867052301,0.07924996,95577.0,95555.0,0.0003404]
[1739867052507,0.07924996,95567.0,95555.0,0.0003404]
[1739867053123,0.07924996,95567.0,95565.0,0.001]
[1739867053352,0.07924996,95575.0,95555.0,0.0003404]
[1739867053551,0.07924996,95580.0,95558.0,0.03407838]
[1739867053762,0.02045917,95576.0,95562.0,0.156964]
[1739867054185,0.07924996,95572.0,95561.0,0.156967]
[1739867054395,0.07924996,95572.0,95565.0,0.001]
[1739867055909,0.02045917,95576.0,95565.0,0.001]
[1739867056104,0.02045917,95576.0,95560.0,0.209291]
[1739867056313,0.02045917,95576.0,95563.0,0.156964]
[1739867056521,0.02145917,95576.0,95562.0,0.156965]
[1739867056662,0.02045917,95576.0,95562.0,0.156965]
[1739867056866,0.0001702,95572.0,95566.0,0.0489]
[1739867057649,0.0001702,95572.0,95568.0,0.076]
[1739867057876,0.0001702,95572.0,95570.0,0.156952]
[1739867058063,0.0001702,95572.0,95571.0,0.156951]
[1739867059858,0.0001702,95572.0,95571.0,0.159951]
[1739867060014,0.0001702,95572.0,95571.0,0.16099727]
[1739867060240,0.0001702,95572.0,95571.0,0.23401609]
[1739867060411,0.0001702,95572.0,95571.0,0.23901609]
[1739867060742,0.0001702,95572.0,95571.0,0.23601609]
[1739867060945,0.0001702,95572.0,95571.0,0.24201609]
[1739867063289,0.09533285,95590.0,95571.0,0.08506509]
[1739867063442,0.156922,95589.0,95573.0,0.156947]
[1739867064083,0.02145144,95587.0,95573.0,0.156947]
[1739867064459,0.02145144,95587.0,95572.0,0.01505096]
[1739867064686,0.02145144,95587.0,95574.0,0.156946]
[1739867064888,0.02145144,95587.0,95573.0,0.156947]
[1739867065063,0.02145144,95587.0,95574.0,0.0666538]
[1739867065868,0.02145144,95587.0,95574.0,0.2235998]
[1739867066694,0.02145144,95587.0,95575.0,0.156944]
[1739867067580,0.12067054,95590.0,95577.0,0.15694]
[1739867067809,0.12067054,95590.0,95576.0,0.156941]
[1739867068032,0.156918,95591.0,95575.0,0.233544]
[1739867068236,0.156917,95592.0,95575.0,0.23361351]
[1739867068755,0.24197779,95595.0,95575.0,0.07666951]
[1739867068947,0.27759054,95590.0,95575.0,0.07666951]
[1739867069080,0.02051998,95589.0,95575.0,0.14188486]
[1739867069751,0.02051998,95589.0,95575.0,0.29882886]
[1739867070278,0.12084074,95590.0,95575.0,0.29882886]
[1739867070499,0.12084074,95590.0,95575.0,0.14188486]
[1739867070635,0.12084074,95590.0,95575.0,0.07666951]
[1739867070835,0.0001702,95590.0,95575.0,0.28592751]
[1739867071047,0.0001702,95590.0,95581.0,0.0465]
[1739867075765,0.0001702,95590.0,95583.0,0.0758]
[1739867075966,0.0001702,95590.0,95583.0,0.23273]
[1739867076182,0.0001702,95590.0,95583.0,0.0758]
[1739867077188,0.0011702,95590.0,95583.0,0.0758]
[1739867077543,0.0001702,95590.0,95583.0,0.0798]
[1739867077862,0.0001702,95590.0,95583.0,0.0838]
[1739867079485,0.0001702,95590.0,95583.0,0.1386801]
[1739867080198,0.0001702,95590.0,95583.0,0.0838]
[1739867081056,0.0001702,95590.0,95584.0,0.156928]
[1739867081265,0.0001702,95590.0,95583.0,0.0838]
[1739867081902,0.0001702,95590.0,95583.0,0.0798]
[1739867082358,0.0001702,95590.0,95584.0,0.004]
[1739867082581,0.0001702,95590.0,95586.0,0.209234]
[1739867082790,0.0001702,95590.0,95589.0,0.156921]
[1739867083236,0.0001702,95590.0,95588.0,0.156923]
[1739867083443,0.0001702,95590.0,95587.0,0.21027806]
[1739867083444,0.0001702,95590.0,95589.0,0.156921]
[1739867083647,0.0001702,95590.0,95587.0,0.209232]
[1739867083782,0.0001702,95590.0,95588.0,0.156923]
[1739867083992,0.0001702,95590.0,95589.0,0.004]
[1739867084251,0.0001702,95590.0,95588.0,0.156923]
[1739867084420,0.0001702,95590.0,95586.0,0.004]
[1739867084632,0.0001702,95590.0,95589.0,0.003]
[1739867084876,0.0001702,95590.0,95587.0,0.156924]
[1739867085050,0.0001702,95590.0,95588.0,0.156922]
[1739867085307,0.0001702,95590.0,95588.0,0.08042037]
[1739867085463,0.0001702,95590.0,95589.0,0.156921]
[1739867085879,0.0001702,95590.0,95589.0,0.159921]
[1739867086339,0.0001702,95590.0,95586.0,0.10250365]
[1739867086503,0.0001702,95590.0,95587.0,0.25942665]
[1739867086693,0.0001702,95590.0,95587.0,0.10250365]
[1739867086877,0.0001702,95590.0,95588.0,0.156923]
[1739867087080,0.0001702,95590.0,95589.0,0.003]
[1739867087280,0.0001702,95590.0,95589.0,0.160921]
[1739867087478,0.0001702,95590.0,95589.0,0.26342465]
[1739867087677,0.0001702,95590.0,95589.0,0.34292465]
[1739867088224,0.0001702,95590.0,95589.0,0.39562465]
[1739867088433,0.0001702,95590.0,95589.0,0.39062465]
[1739867088634,0.0001702,95590.0,95589.0,0.38662465]
[1739867088812,0.0001702,95590.0,95589.0,0.47213362]
[1739867090080,0.0001702,95590.0,95589.0,0.46713362]
[1739867090500,0.0001702,95590.0,95589.0,0.47213362]
[1739867091914,0.0001702,95590.0,95589.0,0.47813362]
[1739867102953,0.0001702,95590.0,95589.0,0.80663362]
[1739867105674,0.0001702,95590.0,95589.0,0.64971262]
[1739867106057,0.0001702,95590.0,95589.0,0.80663362]
[1739867106249,0.0001702,95590.0,95589.0,0.64971262]
[1739867106834,0.0001702,95590.0,95589.0,0.80663362]
[1739867110759,0.0001702,95590.0,95589.0,0.64971262]
[1739867110960,0.0001702,95590.0,95589.0,0.56920365]
[1739867111183,0.0001702,95590.0,95589.0,0.3395]
[1739867111792,0.0001702,95590.0,95589.0,0.3335]
[1739867112241,0.0001702,95590.0,95589.0,0.3385]
[1739867113081,0.0001702,95590.0,95589.0,0.3335]
[1739867113290,0.0001702,95590.0,95589.0,0.3285]
[1739867113490,0.0001702,95590.0,95589.0,0.3315]
[1739867113685,0.0001702,95590.0,95589.0,0.3345]
[1739867113915,0.1570902,95590.0,95589.0,0.3345]
[1739867114527,0.1570902,95590.0,95589.0,0.3315]
[1739867114726,0.1570902,95590.0,95589.0,0.3285]
[1739867114928,0.156921,95589.0,95588.0,0.0003404]
[1739867115104,0.0001702,95590.0,95588.0,0.0003404]
[1739867115437,0.156921,95589.0,95588.0,0.0003404]
[1739867116561,0.1570902,95590.0,95588.0,0.0003404]
[1739867116807,0.1570902,95590.0,95589.0,0.001]
[1739867116923,0.0001702,95590.0,95589.0,0.001]
[1739867117156,0.0001702,95590.0,95588.0,0.0003404]
[1739867117350,0.0001702,95590.0,95589.0,0.001]
[1739867117651,0.1570902,95590.0,95589.0,0.001]
[1739867118570,0.156921,95589.0,95588.0,0.0003404]
[1739867118944,0.156921,95589.0,95588.0,0.0013404]
[1739867119432,0.21777789,95589.0,95588.0,0.0013404]
[1739867119847,0.84990189,95589.0,95588.0,0.0013404]
[1739867120054,0.789045,95589.0,95588.0,0.0003404]
[1739867120779,0.789045,95589.0,95588.0,0.0013404]
[1739867120983,0.50115254,95589.0,95588.0,0.0003404]
[1739867121209,0.82995177,95589.0,95588.0,0.0013404]
[1739867121653,0.85084237,95589.0,95588.0,0.0013404]
[1739867122409,0.81562887,95589.0,95588.0,0.0013404]
[1739867122609,0.81562887,95589.0,95588.0,0.0003404]
[1739867122845,0.78146779,95589.0,95588.0,0.0003404]
[1739867123044,0.88462125,95589.0,95588.0,0.0003404]
[1739867123865,0.69101375,95589.0,95588.0,0.0003404]
[1739867124010,0.84793475,95589.0,95588.0,0.0003404]
[1739867124212,0.1788116,95589.0,95588.0,0.0003404]
[1739867126959,0.1778116,95589.0,95588.0,0.0003404]
[1739867127799,0.1778116,95589.0,95588.0,0.0013404]
[1739867128689,0.1778116,95589.0,95588.0,0.0023404]
[1739867136605,0.1778116,95589.0,95588.0,0.0013404]
[1739867136811,0.1778116,95589.0,95588.0,0.0003404]
[1739867137215,0.1788116,95589.0,95588.0,0.0003404]
[1739867138145,0.0218906,95589.0,95588.0,0.0003404]
[1739867138366,0.0218906,95589.0,95588.0,0.1280404]
[1739867138577,0.001,95589.0,95588.0,0.2849634]
[1739867138986,0.001,95589.0,95588.0,0.33438304]
[1739867139856,0.001,95589.0,95588.0,0.33538304]
[1739867140069,0.0001702,95590.0,95589.0,0.0817]
[1739867140271,0.0001702,95590.0,95589.0,0.238621]
[1739867141542,0.0001702,95590.0,95589.0,0.245621]
[1739867141765,0.0001702,95590.0,95589.0,0.32152505]
[1739867142437,0.0001702,95590.0,95589.0,0.245621]
[1739867146004,0.0001702,95590.0,95589.0,0.241621]
[1739867146733,0.0001702,95590.0,95589.0,0.244621]
[1739867146938,0.17917198,95612.0,95589.0,0.0937]
[1739867147164,0.023,95642.0,95591.0,0.0782]
[1739867147165,0.209169,95617.0,95591.0,0.0782]
[1739867147376,0.156882,95614.0,95601.0,0.1569]
[1739867147581,0.156882,95614.0,95602.0,0.0782]
[1739867147785,0.02096004,95603.0,95602.0,0.0782]
[1739867148481,0.02096004,95603.0,95602.0,0.2351]
[1739867148817,0.02096004,95603.0,95602.0,0.0782]
[1739867149169,0.15688,95614.0,95602.0,0.0782]
[1739867149461,0.0442906,95616.0,95602.0,0.106941]
[1739867149668,0.156881,95614.0,95602.0,0.106941]
[1739867149873,0.156881,95614.0,95602.0,0.107941]
[1739867150086,0.156882,95613.0,95602.0,0.107941]
[1739867150292,0.156882,95613.0,95602.0,0.0802]
[1739867150493,0.156882,95613.0,95602.0,0.0782]
[1739867150933,0.17813093,95614.0,95602.0,0.0782]
[1739867151518,0.02124993,95614.0,95602.0,0.0782]
[1739867151817,0.02124993,95614.0,95603.0,0.0496618]
[1739867152028,0.02124993,95614.0,95604.0,0.285597]
[1739867152970,0.02124993,95614.0,95604.0,0.1287]
[1739867153733,0.02142003,95614.0,95604.0,0.1317]
[1739867154526,0.02142003,95614.0,95604.0,0.288596]
[1739867154738,0.02142003,95614.0,95604.0,0.1347]
[1739867155707,0.0001701,95614.0,95613.0,0.156882]
[1739867155922,0.0001701,95614.0,95612.0,0.233182]
[1739867156130,0.0001701,95614.0,95612.0,0.0763]
[1739867156970,0.0001701,95614.0,95613.0,0.003]
[1739867157426,0.0001701,95614.0,95613.0,0.159882]
[1739867157623,0.0001701,95614.0,95613.0,0.003]
[1739867158185,0.0001701,95614.0,95612.0,0.0763]
[1739867158420,0.0001701,95614.0,95613.0,0.004]
[1739867159503,0.0001701,95614.0,95612.0,0.0803]
[1739867159709,0.0001701,95614.0,95612.0,0.0763]
[1739867160310,0.0001701,95614.0,95613.0,0.004]
[1739867161303,0.0001701,95614.0,95612.0,0.0803]
[1739867162097,0.0001701,95614.0,95612.0,0.0763]
[1739867162327,0.0001701,95614.0,95613.0,0.004]
[1739867162728,0.0001701,95614.0,95612.0,0.0763]
[1739867163267,0.0001701,95614.0,95613.0,0.004]
[1739867163738,0.0001701,95614.0,95612.0,0.0803]
[1739867163946,0.0001701,95614.0,95612.0,0.0843]
[1739867164087,0.0001701,95614.0,95612.0,0.0803]
[1739867164288,0.0001701,95614.0,95612.0,0.0763]
[1739867164489,0.0001701,95614.0,95613.0,0.008]
[1739867164692,0.0001701,95614.0,95613.0,0.004]
[1739867165106,0.0001701,95614.0,95612.0,0.0803]
[1739867165948,0.0001701,95614.0,95612.0,0.0843]
[1739867166099,0.0001701,95614.0,95613.0,0.156882]
[1739867166294,0.0001701,95614.0,95612.0,0.0803]
[1739867166540,0.0001701,95614.0,95613.0,0.156882]
[1739867166742,0.0001701,95614.0,95613.0,0.160882]
[1739867166948,0.0001701,95614.0,95613.0,0.282782]
[1739867167209,0.0001701,95614.0,95613.0,0.286782]
[1739867167803,0.0001701,95614.0,95613.0,0.291782]
[1739867168010,0.0001701,95614.0,95613.0,0.3805183]
[1739867168423,0.0001701,95614.0,95613.0,0.3865183]
[1739867169042,0.0001701,95614.0,95613.0,0.293782]
[1739867170506,0.0001701,95614.0,95613.0,0.39628565]
[1739867175019,0.0001701,95614.0,95613.0,0.39028565]
[1739867175227,0.0001701,95614.0,95613.0,0.39528565]
[1739867175849,0.0001701,95614.0,95613.0,0.39028565]
[1739867176007,0.0001701,95614.0,95613.0,0.49806932]
[1739867176972,0.0001701,95614.0,95613.0,0.49306932]
[1739867177293,0.0001701,95614.0,95613.0,0.49406932]
[1739867177709,0.0001701,95614.0,95613.0,0.49106932]
[1739867178093,0.0001701,95614.0,95613.0,0.49806932]
[1739867178858,0.0001701,95614.0,95613.0,0.49406932]
[1739867179310,0.0001701,95614.0,95613.0,0.50106932]
[1739867195166,0.03592097,95621.0,95614.0,0.0764]
[1739867195426,0.00013282,95627.0,95624.0,0.0764]
[1739867196093,0.03492269,95627.0,95624.0,0.0764]
[1739867196311,0.00013282,95627.0,95624.0,0.0764]
[1739867196735,0.0356428,95627.0,95624.0,0.0764]
[1739867196939,0.00013282,95627.0,95624.0,0.0764]
[1739867197353,0.00013282,95627.0,95624.0,0.1246429]
[1739867197804,0.00013282,95627.0,95624.0,0.1286429]
[1739867197989,0.03593436,95627.0,95624.0,0.0844]
[1739867198401,0.00013282,95627.0,95624.0,0.0844]
[1739867201022,0.03526523,95627.0,95624.0,0.0844]
[1739867202422,0.0302204,95627.0,95624.0,0.0844]
[1739867202625,0.02120244,95635.0,95624.0,0.0844]
[1739867202880,0.02120244,95635.0,95624.0,0.241264]
[1739867203053,0.02120244,95635.0,95625.0,0.0450424]
[1739867203262,0.17804844,95635.0,95625.0,0.0450424]
[1739867203463,0.02120244,95635.0,95625.0,0.0450424]
[1739867203666,0.02120244,95635.0,95624.0,0.0774]
[1739867203874,0.02120244,95635.0,95624.0,0.0794]
[1739867204107,0.02120244,95635.0,95624.0,0.0774]
[1739867204261,0.02120244,95635.0,95624.0,0.0764]
[1739867204674,0.05553399,95635.0,95624.0,0.0764]
[1739867204879,0.05553399,95635.0,95625.0,0.0442429]
[1739867205559,0.05553399,95635.0,95625.0,0.0462429]
[1739867205763,0.05553399,95635.0,95625.0,0.0472429]
[1739867206184,0.05553399,95635.0,95625.0,0.003]
[1739867208471,0.05553399,95635.0,95626.0,0.0473]
[1739867208681,0.05553399,95635.0,95626.0,0.20416]
[1739867208833,0.05553399,95635.0,95626.0,0.0473]
[1739867209238,0.03450175,95635.0,95626.0,0.0473]
[1739867209562,0.03450175,95635.0,95630.0,0.0793]
[1739867209716,0.03450175,95635.0,95634.0,0.156847]
[1739867212005,0.03450175,95635.0,95634.0,0.160847]
[1739867212385,0.03450175,95635.0,95634.0,0.164847]
[1739867212588,0.03450175,95635.0,95634.0,0.156847]
[1739867213194,0.03450175,95635.0,95634.0,0.167847]
[1739867213396,0.03450175,95635.0,95634.0,0.245547]
[1739867215037,0.03450175,95635.0,95634.0,0.240547]
[1739867215491,0.0001702,95635.0,95634.0,0.246547]
[1739867215910,0.0001702,95635.0,95634.0,0.240547]
[1739867216105,0.0001702,95635.0,95634.0,0.234547]
[1739867216254,0.0001702,95635.0,95634.0,0.245547]
[1739867216842,0.0001702,95635.0,95634.0,0.234547]
[1739867216984,0.0001702,95635.0,95634.0,0.248547]
[1739867218073,0.0001702,95635.0,95634.0,0.39249337]
[1739867220461,0.0001702,95635.0,95634.0,0.49499702]
[1739867223105,0.0001702,95635.0,95634.0,0.51799702]
[1739867224292,0.0001702,95668.0,95638.0,0.0483]
[1739867224293,0.156792,95668.0,95638.0,0.0483]
[1739867224554,0.00044266,95657.0,95656.0,0.156811]
[1739867224834,0.00044266,95657.0,95656.0,0.233811]
[1739867224993,0.00044266,95657.0,95656.0,0.24891832]
[1739867225394,0.00044266,95657.0,95656.0,0.233811]
[1739867226470,0.00044266,95657.0,95656.0,0.237811]
[1739867226907,0.00044266,95657.0,95656.0,0.33831465]
[1739867227064,0.00044266,95657.0,95656.0,0.33631465]
[1739867227262,0.00044266,95657.0,95656.0,0.34031465]
[1739867227465,0.00044266,95657.0,95656.0,0.36779197]
[1739867228496,0.00044266,95657.0,95656.0,0.42079197]
[1739867229149,0.00044266,95657.0,95656.0,0.76829197]
[1739867229362,0.00044266,95657.0,95656.0,0.77129197]
[1739867229547,0.00044266,95657.0,95656.0,0.77729197]
[1739867231447,0.00044266,95657.0,95656.0,0.76429197]
[1739867231896,0.00044266,95657.0,95656.0,0.77829197]
[1739867232310,0.00044266,95657.0,95656.0,0.77129197]
[1739867232698,0.00044266,95657.0,95656.0,0.77829197]
[1739867233154,0.00044266,95657.0,95656.0,0.76429197]
[1739867233359,0.00044266,95657.0,95656.0,0.77129197]
[1739867233543,0.00044266,95657.0,95656.0,0.77829197]
[1739867233693,0.00061286,95657.0,95656.0,0.77829197]
[1739867238868,0.00061286,95657.0,95656.0,0.77129197]
[1739867239045,0.00061286,95657.0,95656.0,0.77829197]
[1739867239252,0.00061286,95657.0,95656.0,0.77129197]
[1739867239449,0.00061286,95657.0,95656.0,0.77829197]
[1739867239812,0.00061286,95657.0,95656.0,0.77129197]